bitfinex/quotes_SOLUSD_20250410
["timestamp","ask_amount","ask_price","bid_price","bid_amount"]
[1744289056265,26.35210804,114.68,114.64,62.52269314]
[1744289056457,35.07130804,114.69,114.65,26.35210804]
[1744289056656,26.35210804,114.68,114.64,62.52269314]
[1744289056873,26.35210804,114.68,114.64,36.1705851]
[1744289057057,26.35210804,114.68,114.64,62.52269314]
[1744289057580,8.7199,114.68,114.64,27.4479851]
[1744289057751,26.35210804,114.67,114.64,13.88]
[1744289058474,26.35210804,114.67,114.64,22.6029]
[1744289058867,35.07200804,114.68,114.64,22.6029]
[1744289059059,38.97450804,114.69,114.65,26.35210804]
[1744289059271,43.32720804,114.7,114.65,26.35210804]
[1744289059466,26.35210804,114.69,114.65,26.35210804]
[1744289059766,34.60860804,114.7,114.65,35.07370804]
[1744289060075,38.44550804,114.72,114.67,26.35210804]
[1744289060275,26.35210804,114.71,114.67,26.35210804]
[1744289060874,26.35210804,114.7,114.66,26.35210804]
[1744289061663,35.06980804,114.71,114.67,26.35210804]
[1744289061853,47.16270804,114.72,114.67,26.35210804]
[1744289062284,26.35210804,114.71,114.67,26.35210804]
[1744289062778,42.93360804,114.73,114.69,26.35210804]
[1744289062979,0.0001,114.73,114.7,26.35210804]
[1744289063275,0.0001,114.73,114.66,26.63643118]
[1744289063480,0.0001,114.73,114.7,26.35210804]
[1744289063683,0.0001,114.73,114.71,8.7176]
[1744289063865,0.0001,114.73,114.69,8.7191]
[1744289064068,0.0001,114.73,114.7,26.35210804]
[1744289064561,26.35220804,114.73,114.68,8.7196]
[1744289064781,26.35210804,114.72,114.68,26.35210804]
[1744289065882,18.64974886,114.73,114.68,26.35210804]
[1744289066183,26.35210804,114.72,114.67,35.07240804]
[1744289066659,26.35210804,114.72,114.68,26.35210804]
[1744289067983,8.7176,114.71,114.67,35.07240804]
[1744289068477,35.06970804,114.71,114.67,26.35210804]
[1744289068872,34.56970804,114.7,114.66,26.35210804]
[1744289070080,43.28860804,114.7,114.66,26.35210804]
[1744289070266,43.28860804,114.7,114.66,35.07340804]
[1744289070462,43.28860804,114.7,114.64,13.88]
[1744289070463,43.28860804,114.7,114.65,8.7219]
[1744289070670,26.35210804,114.69,114.65,26.35210804]
[1744289070868,55.44030804,114.7,114.66,26.35210804]
[1744289071089,26.35210804,114.68,114.62,12.53532314]
[1744289071287,26.35210804,114.68,114.64,26.35210804]
[1744289071584,26.35210804,114.69,114.65,26.35210804]
[1744289071988,26.35210804,114.67,114.62,8.7541]
[1744289072172,35.07380804,114.66,114.62,26.38210804]
[1744289072573,35.07380804,114.66,114.62,0.03]
[1744289072768,35.07380804,114.66,114.62,26.38210804]
[1744289073387,52.35210804,114.63,114.62,0.03]
[1744289074265,61.07580804,114.63,114.62,0.03]
[1744289074861,79.7254569,114.63,114.62,0.03]
[1744289075186,52.43044886,114.6,114.59,0.063]
[1744289075368,18.64964886,114.59,114.58,0.03]
[1744289075568,45.28608004,114.59,114.58,0.03]
[1744289076294,54.01278004,114.59,114.58,0.03]
[1744289076592,35.07880804,114.59,114.58,0.03]
[1744289076969,26.35210804,114.59,114.58,0.03]
[1744289077895,68.85900804,114.6,114.58,0.03]
[1744289078093,60.13290804,114.6,114.58,0.03]
[1744289078260,45.0017569,114.59,114.58,0.03]
[1744289080488,26.35210804,114.59,114.58,0.03]
[1744289080663,33.7808,114.6,114.58,0.03]
[1744289080859,26.35210804,114.59,114.58,0.03]
[1744289081664,60.13290804,114.6,114.58,0.03]
[1744289081871,26.35210804,114.59,114.58,0.03]
[1744289082894,60.13290804,114.6,114.58,0.03]
[1744289083293,26.35210804,114.59,114.58,0.03]
[1744289084679,33.7808,114.6,114.58,0.03]
[1744289084880,26.35210804,114.59,114.58,0.03]
[1744289085091,33.7808,114.6,114.58,0.03]
[1744289085290,26.35210804,114.59,114.58,0.03]
[1744289086189,45.0017569,114.59,114.58,0.03]
[1744289086384,26.35210804,114.59,114.58,0.03]
[1744289086585,7.7808,114.6,114.58,0.03]
[1744289086784,34.13290804,114.6,114.58,0.03]
[1744289087269,26.35210804,114.59,114.58,0.03]
[1744289088197,45.0017569,114.59,114.58,0.03]
[1744289088901,53.7284569,114.59,114.58,0.03]
[1744289090199,26.35210804,114.59,114.58,0.03]
[1744289090404,45.0017569,114.59,114.58,0.03]
[1744289091097,45.28608004,114.59,114.58,0.03]
[1744289092382,54.01278004,114.59,114.58,0.03]
[1744289093301,53.7284569,114.59,114.58,0.03]
[1744289094600,35.07880804,114.59,114.58,0.03]
[1744289094785,26.35210804,114.59,114.58,0.03]
[1744289095301,53.7284569,114.59,114.58,0.03]
[1744289097083,54.01278004,114.59,114.58,0.03]
[1744289098999,32.062272,114.58,114.57,0.03]
[1744289099186,58.41438004,114.58,114.57,0.03]
[1744289099500,26.0,114.55,114.53,0.063]
[1744289099703,71.35386494,114.54,114.53,0.063]
[1744289100201,80.08436494,114.54,114.53,0.063]
[1744289100506,80.36868808,114.54,114.53,0.063]
[1744289100998,88.10958808,114.54,114.53,0.063]
[1744289101201,18.64964886,114.52,114.5,0.063]
[1744289101401,18.64964886,114.52,114.46,0.063]
[1744289101402,26.0,114.49,114.46,0.063]
[1744289101599,26.0,114.49,114.46,8.7993]
[1744289101808,12.7382,114.53,114.46,8.7993]
[1744289102004,18.64964886,114.53,114.46,8.7993]
[1744289102184,26.35210804,114.5,114.46,35.15140804]
[1744289102379,26.35210804,114.51,114.47,26.35210804]
[1744289102579,26.35210804,114.53,114.47,12.27606157]
[1744289102784,16.4717,114.54,114.49,26.35210804]
[1744289102985,35.08290804,114.54,114.49,26.35210804]
[1744289103206,26.35210804,114.53,114.49,26.35210804]
[1744289103786,26.35210804,114.52,114.48,35.08720804]
[1744289104290,26.35210804,114.54,114.49,26.35210804]
[1744289104492,26.35210804,114.54,114.5,26.35210804]
[1744289104892,26.35210804,114.54,114.49,26.35210804]
[1744289105197,21.8451,114.56,114.49,26.35210804]
[1744289105397,8.7294,114.56,114.5,26.35210804]
[1744289105594,26.35210804,114.54,114.5,26.35210804]
[1744289105994,26.35210804,114.54,114.5,8.733]
[1744289106306,35.08270804,114.54,114.5,8.733]
[1744289107109,26.35210804,114.53,114.47,12.1339]
[1744289107313,26.35210804,114.51,114.47,35.08760804]
[1744289107506,26.35210804,114.5,114.47,8.7355]
[1744289108014,26.35210804,114.51,114.47,35.08760804]
[1744289108418,8.7302,114.55,114.49,26.35210804]
[1744289108592,26.35210804,114.53,114.49,26.35210804]
[1744289108915,26.35210804,114.52,114.48,26.35210804]
[1744289109102,26.35210804,114.51,114.46,8.7993]
[1744289109296,45.0017569,114.54,114.47,26.35210804]
[1744289109500,26.35210804,114.53,114.49,26.35210804]
[1744289109702,26.35210804,114.54,114.5,26.35210804]
[1744289109906,26.35210804,114.55,114.5,26.35210804]
[1744289110394,26.35210804,114.54,114.5,26.35210804]
[1744289110791,16.5307,114.57,114.52,26.35210804]
[1744289110991,42.88270804,114.57,114.53,26.35210804]
[1744289111293,26.35210804,114.55,114.5,12.8053]
[1744289111602,26.35210804,114.55,114.51,26.35210804]
[1744289112402,26.35210804,114.55,114.51,35.08420804]
[1744289112602,35.08150804,114.56,114.51,35.08420804]
[1744289112798,26.35210804,114.53,114.5,8.7334]
[1744289113002,26.35210804,114.53,114.49,26.35210804]
[1744289113395,26.35210804,114.54,114.5,26.35210804]
[1744289113994,26.35210804,114.54,114.49,26.35210804]
[1744289114403,35.08270804,114.54,114.5,8.7336]
[1744289115214,35.08270804,114.54,114.49,35.08610804]
[1744289115215,26.35210804,114.53,114.49,35.08610804]
[1744289115428,26.35210804,114.53,114.49,8.734]
[1744289115595,26.35210804,114.52,114.48,26.35210804]
[1744289115911,8.7306,114.54,114.47,30.5756]
[1744289116109,8.7306,114.54,114.5,26.35210804]
[1744289116311,8.7306,114.54,114.5,35.08520804]
[1744289116506,26.35210804,114.56,114.52,26.35210804]
[1744289116711,61.5324569,114.57,114.52,26.35210804]
[1744289117016,26.35210804,114.56,114.52,26.35210804]
[1744289117221,34.15420804,114.57,114.53,26.35210804]
[1744289117419,24.44819265,114.57,114.53,16.64609265]
[1744289117606,16.64609265,114.57,114.5,30.5671]
[1744289117804,16.64609265,114.57,114.53,16.64609265]
[1744289118408,16.64609265,114.57,114.53,25.37669265]
[1744289118919,24.47309265,114.58,114.54,16.64609265]
[1744289119626,16.64609265,114.57,114.53,8.7306]
[1744289119820,16.64609265,114.56,114.51,8.7328]
[1744289120015,16.64609265,114.55,114.51,25.37889265]
[1744289120322,16.64609265,114.56,114.52,16.64609265]
[1744289120702,16.64609265,114.56,114.52,25.37739265]
[1744289121115,16.64609265,114.56,114.52,47.20759265]
[1744289121423,16.64609265,114.56,114.52,25.37739265]
[1744289121926,25.37519265,114.56,114.52,25.37739265]
[1744289122405,16.64609265,114.56,114.52,25.37739265]
[1744289124205,24.47309265,114.58,114.53,16.64609265]
[1744289124520,24.47309265,114.58,114.54,16.64609265]
[1744289125118,12.9181,114.59,114.57,16.64609265]
[1744289125119,0.03,114.59,114.57,16.64609265]
[1744289125516,0.03,114.59,114.56,16.64609265]
[1744289125714,0.03,114.59,114.57,16.64609265]
[1744289126019,0.03,114.59,114.58,16.64609265]
[1744289126207,0.03,114.59,114.57,25.37389265]
[1744289126723,16.67609265,114.59,114.55,16.64609265]
[1744289126908,16.64609265,114.58,114.54,25.37659265]
[1744289127309,16.67609265,114.59,114.55,16.64609265]
[1744289127825,16.64609265,114.58,114.54,25.37659265]
[1744289128415,25.40309265,114.59,114.55,16.64609265]
[1744289128622,16.67609265,114.59,114.55,16.64609265]
[1744289129022,25.40289265,114.59,114.55,16.64609265]
[1744289129324,16.67609265,114.59,114.55,16.64609265]
[1744289129523,0.03,114.59,114.55,16.64609265]
[1744289129733,25.40289265,114.59,114.55,16.64609265]
[1744289129908,16.67609265,114.59,114.55,16.64609265]
[1744289130229,16.67609265,114.59,114.56,8.729]
[1744289130520,16.67609265,114.59,114.55,25.37539265]
[1744289130725,0.03,114.59,114.56,16.64609265]
[1744289131102,16.64609265,114.58,114.52,12.2244]
[1744289131306,16.64609265,114.55,114.5,8.7332]
[1744289131623,16.64609265,114.51,114.47,8.7359]
[1744289131928,16.64609265,114.51,114.47,25.38199265]
[1744289132129,24.59099265,114.52,114.47,8.7359]
[1744289132306,25.37939265,114.51,114.47,16.64609265]
[1744289132504,16.6773,114.52,114.47,16.64609265]
[1744289132821,16.64609265,114.51,114.46,8.7996]
[1744289133020,16.64609265,114.51,114.47,16.64609265]
[1744289133322,26.6637159,114.5,114.46,26.7267159]
[1744289133528,26.6637159,114.49,114.46,0.063]
[1744289133826,26.6637159,114.48,114.46,0.063]
[1744289134204,54.04926476,114.47,114.46,0.063]
[1744289134404,7.9449,114.52,114.46,0.063]
[1744289134722,52.6637159,114.48,114.46,0.063]
[1744289136021,7.9449,114.52,114.46,0.063]
[1744289136222,26.6637159,114.49,114.46,0.063]
[1744289136799,26.6637159,114.49,114.46,8.7995]
[1744289137320,26.6637159,114.49,114.46,0.063]
[1744289137921,26.6637159,114.48,114.46,0.063]
[1744289138122,26.6637159,114.47,114.46,0.063]
[1744289139418,35.3996159,114.47,114.46,0.063]
[1744289139821,54.04926476,114.47,114.46,0.063]
[1744289142233,26.6637159,114.47,114.46,0.063]
[1744289142730,26.0,114.47,114.46,0.063]
[1744289143428,0.28432314,114.5,114.46,0.063]
[1744289143635,26.6637159,114.48,114.46,0.063]
[1744289143822,52.6637159,114.48,114.46,0.063]
[1744289144224,26.6637159,114.48,114.46,0.063]
[1744289144932,26.6637159,114.47,114.46,0.063]
[1744289145230,45.5976879,114.47,114.46,0.063]
[1744289145426,26.0,114.43,114.34,0.5]
[1744289145613,47.4245159,114.42,114.31,34.99627117]
[1744289145819,26.6637159,114.37,114.32,26.6637159]
[1744289146125,18.64964886,114.38,114.32,26.6637159]
[1744289146328,26.6637159,114.37,114.33,26.6637159]
[1744289146543,45.31336476,114.38,114.33,26.6637159]
[1744289146839,26.6637159,114.37,114.32,26.6637159]
[1744289147038,26.6637159,114.33,114.23,7.20406656]
[1744289147232,26.6637159,114.33,114.22,0.5]
[1744289147233,26.6637159,114.28,114.24,30.0]
[1744289147444,26.6637159,114.29,114.24,26.6637159]
[1744289147745,31.93414886,114.34,114.27,26.6637159]
[1744289148034,39.9482159,114.34,114.29,26.6637159]
[1744289148233,7.8816,114.36,114.29,26.6637159]
[1744289148530,26.6637159,114.3,114.24,26.6637159]
[1744289148730,26.6637159,114.29,114.24,26.6637159]
[1744289149346,26.6637159,114.29,114.2,0.5]
[1744289149347,26.6637159,114.25,114.2,0.5]
[1744289149531,26.6637159,114.24,114.18,26.6637159]
[1744289149719,26.6637159,114.25,114.2,26.6637159]
[1744289150245,26.6637159,114.24,114.19,26.6637159]
[1744289150544,13.3163,114.28,114.2,26.6637159]
[1744289150751,35.4149159,114.27,114.26,81.87650137]
[1744289150915,8.7505,114.28,114.26,81.87650137]
[1744289151252,45.31336476,114.27,114.26,81.87650137]
[1744289151419,45.5976879,114.27,114.26,81.87650137]
[1744289151929,45.31336476,114.27,114.26,81.87650137]
[1744289152143,26.6637159,114.27,114.26,81.87650137]
[1744289152349,8.7505,114.28,114.26,81.87650137]
[1744289152646,8.7512,114.27,114.26,81.87650137]
[1744289153038,35.4149159,114.27,114.26,81.87650137]
[1744289154647,35.4149159,114.27,114.22,26.6637159]
[1744289154842,35.4149159,114.27,114.23,26.6637159]
[1744289155128,26.6637159,114.24,114.15,13.72]
[1744289155433,26.6637159,114.2,114.16,26.6637159]
[1744289155843,44.64964886,114.23,114.17,26.6637159]
[1744289156154,26.6637159,114.21,114.15,22.4801]
[1744289156368,8.7496,114.29,114.23,26.0]
[1744289156540,8.7496,114.29,114.25,26.6637159]
[1744289156541,35.4133159,114.29,114.25,26.6637159]
[1744289156848,35.4133159,114.29,114.24,26.6637159]
[1744289157338,26.6637159,114.28,114.24,26.6637159]
[1744289157547,26.6637159,114.29,114.24,26.6637159]
[1744289157724,26.6637159,114.3,114.25,26.6637159]
[1744289158041,8.7469,114.33,114.27,26.6637159]
[1744289158237,26.6637159,114.32,114.27,26.6637159]
[1744289158437,26.6637159,114.31,114.27,26.6637159]
[1744289158743,26.6637159,114.32,114.27,26.6637159]
[1744289158948,26.6637159,114.32,114.27,35.4148159]
[1744289159132,26.6637159,114.31,114.26,35.4153159]
[1744289159330,26.6637159,114.31,114.27,26.6637159]
[1744289159533,8.7475,114.32,114.27,26.6637159]
[1744289159732,26.6637159,114.31,114.27,26.6637159]
[1744289160120,8.3284,114.35,114.29,26.6637159]
[1744289160321,26.6637159,114.34,114.29,26.6637159]
[1744289160541,26.6637159,114.33,114.29,26.6637159]
[1744289160731,26.6637159,114.33,114.28,26.94803904]
[1744289160938,26.6637159,114.32,114.27,8.7509]
[1744289161128,26.6637159,114.3,114.27,8.7509]
[1744289161326,26.6637159,114.31,114.27,8.7509]
[1744289161627,26.6637159,114.3,114.27,8.7509]
[1744289161851,26.6637159,114.28,114.22,322.1061]
[1744289162022,26.6637159,114.28,114.23,35.4179159]
[1744289162358,26.0,114.28,114.24,26.94803904]
[1744289162646,26.6637159,114.28,114.24,26.6637159]
[1744289163533,52.6637159,114.28,114.23,35.4179159]
[1744289163861,26.6637159,114.27,114.23,35.4179159]
[1744289164149,26.6637159,114.27,114.22,300.50432314]
[1744289164150,26.6637159,114.25,114.21,49.1591159]
[1744289164343,8.7519,114.26,114.16,12.9553]
[1744289164524,26.0,114.23,114.17,35.4225159]
[1744289164726,26.6637159,114.21,114.17,35.4225159]
[1744289164941,26.0,114.23,114.18,0.063]
[1744289165148,26.6637159,114.22,114.18,26.7267159]
[1744289165346,26.6637159,114.19,114.18,0.063]
[1744289165527,26.6637159,114.2,114.18,0.063]
[1744289165834,26.0,114.21,114.18,0.063]
[1744289166028,52.6637159,114.21,114.18,0.063]
[1744289166427,26.6637159,114.19,114.18,0.063]
[1744289167047,71.97708066,114.19,114.18,0.063]
[1744289167223,72.2614038,114.19,114.18,0.063]
[1744289167420,26.0,114.16,114.12,26.7267159]
[1744289167645,26.6637159,114.15,114.12,0.063]
[1744289167845,26.6637159,114.17,114.12,35.4893159]
[1744289168023,26.6637159,114.16,114.12,35.4893159]
[1744289168222,26.6637159,114.15,114.12,0.063]
[1744289168427,26.6637159,114.14,114.12,0.063]
[1744289169220,0.78431234,114.21,114.12,0.063]
[1744289169221,43.7602,114.26,114.13,26.6637159]
[1744289169541,26.6637159,114.22,114.17,26.6637159]
[1744289169728,26.6637159,114.24,114.19,26.6637159]
[1744289170047,26.6637159,114.21,114.12,0.063]
[1744289170348,26.6637159,114.21,114.18,8.7581]
[1744289170552,26.6637159,114.19,114.17,0.28432314]
[1744289170742,26.6637159,114.2,114.17,0.28432314]
[1744289171449,26.6637159,114.19,114.16,8.7596]
[1744289171653,26.6637159,114.2,114.17,0.28432314]
[1744289172245,26.6637159,114.19,114.16,8.7596]
[1744289172445,26.6637159,114.17,114.13,8.7619]
[1744289172641,26.6637159,114.16,114.13,8.7619]
[1744289173153,52.6637159,114.19,114.15,26.94803904]
[1744289173330,26.6637159,114.18,114.15,0.28432314]
[1744289173531,26.6637159,114.17,114.13,8.7619]
[1744289173839,26.6637159,114.14,114.12,8.8254]
[1744289174036,26.6637159,114.13,114.12,0.063]
[1744289174436,54.07526476,114.13,114.12,0.063]
[1744289174954,80.73898066,114.13,114.12,0.063]
[1744289175333,80.73898066,114.13,114.06,8.767]
[1744289175653,26.6637159,114.1,114.06,35.4307159]
[1744289175855,26.6637159,114.1,114.06,8.767]
[1744289176035,26.6637159,114.09,114.06,8.767]
[1744289176547,26.6637159,114.1,114.07,0.28432314]
[1744289177157,35.4264159,114.12,114.06,0.14216157]
[1744289177342,40.29706447,114.07,114.04,8.7688]
[1744289178347,40.29706447,114.08,114.04,8.7688]
[1744289178874,40.29706447,114.07,114.03,8.7693]
[1744289179261,40.29706447,114.05,114.0,0.063]
[1744289179459,40.29706447,114.06,114.01,49.06816447]
[1744289179755,40.29706447,114.06,114.01,8.7711]
[1744289179941,40.29706447,114.07,114.03,0.28432314]
[1744289180135,40.29706447,114.07,114.02,40.29706447]
[1744289180347,40.29706447,114.05,114.01,8.7711]
[1744289180858,40.29706447,114.03,114.0,8.8346]
[1744289181071,40.29706447,114.04,114.0,8.8346]
[1744289181354,40.29706447,114.02,114.0,8.8346]
[1744289181539,58.94671333,114.06,114.0,8.8346]
[1744289181733,40.29706447,114.02,114.0,0.063]
[1744289181953,40.29706447,114.03,114.0,8.8346]
[1744289182149,16.9241,114.08,114.0,8.8346]
[1744289182348,40.29706447,114.03,114.0,0.063]
[1744289182558,40.29706447,114.05,114.01,40.29706447]
[1744289182760,26.80774886,114.08,114.01,40.58138761]
[1744289182761,40.29706447,114.06,114.01,40.58138761]
[1744289182949,40.29706447,114.05,114.01,0.28432314]
[1744289183141,16.9242,114.08,114.01,40.58138761]
[1744289183343,40.29706447,114.05,114.01,40.29706447]
[1744289183542,40.29706447,114.02,114.0,0.063]
[1744289183737,18.64964886,114.05,114.0,0.063]
[1744289183958,40.29706447,114.04,114.0,0.063]
[1744289184165,40.29706447,114.01,114.0,0.063]
[1744289184767,108.0148778,114.01,114.0,0.063]
[1744289185767,18.64964886,113.97,113.85,21.9587]
[1744289185944,40.29706447,113.93,113.86,30.0]
[1744289186145,18.64964886,113.97,113.86,30.0]
[1744289186380,40.29706447,113.94,113.85,21.9587]
[1744289186569,40.29706447,113.94,113.84,44.4212]
[1744289186767,40.29706447,113.94,113.85,18.64964886]
[1744289186954,40.29706447,113.96,113.92,40.29706447]
[1744289187266,40.29706447,113.98,113.93,40.29706447]
[1744289187446,40.29706447,113.97,113.92,0.28432314]
[1744289187648,40.29706447,114.0,113.92,40.29706447]
[1744289187952,18.64964886,113.99,113.92,40.29706447]
[1744289188159,40.29706447,113.96,113.91,40.29706447]
[1744289188361,18.64964886,113.99,113.9,0.28432314]
[1744289188560,40.29706447,113.96,113.91,8.7788]
[1744289188873,40.29706447,113.94,113.91,8.7788]
[1744289189063,40.29706447,113.93,113.91,8.7788]
[1744289189362,40.29706447,113.92,113.85,12.1296]
[1744289189565,40.29706447,113.89,113.86,8.7827]
[1744289189869,18.64964886,113.93,113.86,8.7827]
[1744289190158,40.29706447,113.9,113.86,49.07976447]
[1744289190358,40.29706447,113.88,113.86,8.7827]
[1744289190561,40.29706447,113.88,113.85,8.7834]
[1744289191143,40.29706447,113.88,113.84,62.25616447]
[1744289191144,40.29706447,113.88,113.83,13.7]
[1744289191463,40.29706447,113.88,113.84,49.08116447]
[1744289191765,40.29706447,113.9,113.85,40.29706447]
[1744289192171,40.29706447,113.9,113.86,40.29706447]
[1744289192466,40.29706447,113.89,113.86,8.7827]
[1744289193057,40.29706447,113.88,113.85,8.7834]
[1744289193255,40.29706447,113.87,113.85,8.7834]
[1744289193571,40.29706447,113.9,113.86,40.29706447]
[1744289193766,27.42734886,113.93,113.86,40.29706447]
[1744289194070,40.29706447,113.89,113.85,71.03916447]
[1744289194473,40.29706447,113.89,113.85,8.7834]
[1744289194769,27.42734886,113.93,113.85,40.29706447]
[1744289194958,56.80036447,113.94,113.87,40.29706447]
[1744289195157,26.0,113.95,113.89,40.29706447]
[1744289195350,8.7734,113.98,113.91,0.14216157]
[1744289195547,40.29706447,113.95,113.9,40.29706447]
[1744289195848,40.29706447,113.92,113.89,0.28432314]
[1744289196055,40.29706447,113.93,113.88,40.29706447]
[1744289196256,40.29706447,113.92,113.88,40.29706447]
[1744289196665,8.7761,113.95,113.89,8.7804]
[1744289196851,40.29706447,113.94,113.9,40.58138761]
[1744289197052,40.29706447,113.93,113.9,0.28432314]
[1744289197269,40.29706447,113.94,113.9,0.28432314]
[1744289197454,34.3866,113.99,113.9,40.58138761]
[1744289197646,40.29706447,113.95,113.91,40.29706447]
[1744289197853,40.29706447,113.94,113.9,40.58138761]
[1744289198070,40.29706447,113.94,113.9,0.28432314]
[1744289198275,40.29706447,113.96,113.91,40.29706447]
[1744289198654,40.29706447,113.94,113.91,8.7788]
[1744289198962,40.29706447,113.93,113.88,62.24936447]
[1744289199272,40.29706447,113.92,113.89,8.7804]
[1744289199454,40.29706447,113.91,113.89,8.7804]
[1744289199656,40.29706447,113.92,113.89,8.7804]
[1744289199856,40.29706447,113.93,113.89,71.02846447]
[1744289200073,18.64964886,113.97,113.89,71.02846447]
[1744289200273,40.29706447,113.94,113.9,0.28432314]
[1744289200668,40.29706447,113.93,113.91,8.7788]
[1744289200859,40.29706447,113.92,113.91,8.7788]
[1744289201060,40.29706447,113.93,113.91,8.7788]
[1744289201589,8.7742,113.97,113.91,8.7788]
[1744289201884,40.29706447,113.93,113.91,8.7788]
[1744289202480,40.29706447,113.92,113.87,8.7819]
[1744289202784,40.29706447,113.88,113.86,8.8457]
[1744289203591,40.29706447,113.89,113.86,8.8457]
[1744289204085,40.29706447,113.93,113.88,40.29706447]
[1744289204256,40.29706447,113.93,113.89,40.29706447]
[1744289204762,40.29706447,113.92,113.88,71.03106447]
[1744289204959,40.29706447,113.89,113.83,8.785]
[1744289205167,18.64964886,113.93,113.83,49.08206447]
[1744289205360,18.64964886,113.93,113.84,40.29706447]
[1744289205361,40.29706447,113.88,113.84,40.29706447]
[1744289205562,40.29706447,113.89,113.85,40.58138761]
[1744289205755,40.29706447,113.89,113.85,0.28432314]
[1744289205981,40.29706447,113.89,113.85,40.58138761]
[1744289206487,40.29706447,113.88,113.84,62.25696447]
[1744289206692,40.29706447,113.88,113.84,71.04116447]
[1744289206989,21.9454,113.92,113.84,8.7842]
[1744289206990,40.29706447,113.87,113.84,8.7842]
[1744289207290,40.29706447,113.88,113.84,49.08126447]
[1744289207473,40.29706447,113.88,113.84,8.7842]
[1744289207660,40.29706447,113.88,113.84,71.04186447]
[1744289207867,40.29706447,113.88,113.84,30.7448]
[1744289208065,40.29706447,113.88,113.84,71.04186447]
[1744289208475,40.29706447,113.87,113.84,30.7448]
[1744289208860,40.29706447,113.88,113.84,71.04186447]
[1744289209294,26.95751922,113.87,113.84,30.7448]
[1744289210000,26.95751922,113.87,113.84,8.7842]
[1744289211169,26.95751922,113.88,113.85,26.95751922]
[1744289211591,26.95751922,113.88,113.84,57.70231922]
[1744289212567,26.95751922,113.87,113.84,30.7448]
[1744289212977,26.95751922,113.88,113.84,57.70231922]
[1744289213300,26.95751922,113.89,113.85,26.95751922]
[1744289213486,26.95751922,113.88,113.84,57.70231922]
[1744289213791,26.95751922,113.88,113.84,30.7448]
[1744289213970,26.95751922,113.87,113.84,8.7842]
[1744289214366,26.95751922,113.86,113.84,8.7842]
[1744289214597,26.95751922,113.85,113.81,8.7865]
[1744289214808,26.95751922,113.85,113.81,35.74401922]
[1744289215379,26.95751922,113.85,113.81,57.71041922]
[1744289215581,26.95751922,113.86,113.82,0.28432314]
[1744289215778,26.95751922,113.86,113.82,26.95751922]
[1744289216194,30.7286,113.9,113.82,26.95751922]
[1744289216413,26.95751922,113.86,113.82,26.95751922]
[1744289216700,26.95751922,113.87,113.83,26.95751922]
[1744289216873,26.95751922,113.87,113.82,0.28432314]
[1744289217073,26.95751922,113.87,113.83,26.95751922]
[1744289217607,26.95751922,113.87,113.84,8.7842]
[1744289217893,26.95751922,113.86,113.84,8.7842]
[1744289218502,26.95751922,113.87,113.84,8.7842]
[1744289218882,26.95751922,113.88,113.84,35.74171922]
[1744289219180,26.95751922,113.88,113.84,57.70231922]
[1744289219386,26.95751922,113.87,113.84,30.7448]
[1744289219770,26.95751922,113.87,113.84,8.7842]
[1744289220718,8.7797,113.9,113.84,8.7842]
[1744289221085,26.95751922,113.86,113.84,8.7842]
[1744289221388,26.95751922,113.85,113.81,27.09968079]
[1744289221586,26.95751922,113.84,113.8,35.74481922]
[1744289221885,26.95751922,113.83,113.8,8.7873]
[1744289222304,18.64964886,113.87,113.8,8.7873]
[1744289222507,26.95751922,113.83,113.8,8.7873]
[1744289222702,26.95751922,113.86,113.81,26.95751922]
[1744289222895,26.95751922,113.86,113.82,8.7858]
[1744289223106,26.95751922,113.84,113.82,8.7858]
[1744289223388,8.7819,113.87,113.82,8.7858]
[1744289223597,26.95751922,113.84,113.81,8.7862]
[1744289223809,26.95751922,113.83,113.81,8.7862]
[1744289224121,53.91503844,113.82,113.74,30.7712]
[1744289224285,26.95751922,113.75,113.72,8.7935]
[1744289224490,26.95751922,113.73,113.72,8.7935]
[1744289224687,12.643,113.81,113.72,35.75101922]
[1744289224899,26.95751922,113.76,113.74,8.7919]
[1744289225486,26.95751922,113.78,113.74,30.7718]
[1744289225707,30.0663,113.85,113.75,27.09968079]
[1744289225708,26.95751922,113.8,113.75,27.09968079]
[1744289225912,26.95751922,113.79,113.76,0.14216157]
[1744289226117,26.95751922,113.77,113.74,8.7919]
[1744289226457,26.95751922,113.75,113.74,8.7919]
[1744289226586,26.95751922,113.75,113.72,8.7935]
[1744289226787,26.95751922,113.73,113.72,8.7935]
[1744289227006,26.95751922,113.74,113.71,0.063]